[Event "*** Titled Tuesday Blitz"]
[Site "Chess.com"]
[Date "2020.05.26"]
[Round "4"]
[White "axvesik"]
[Black "rpragchess"]
[Result "0-1"]
[WhiteElo "2541"]
[BlackElo "2836"]
[TimeControl "180+1"]
[EndTime "10:38:19 PDT"]
[Termination "rpragchess won by resignation"]

1. e4 {[%clk 0:03:00.9]} 1... c5 {[%clk 0:02:59.3]} 2. Nf3 {[%clk 0:03:00.8]}
2... e6 {[%clk 0:02:59.4]} 3. d4 {[%clk 0:03:01.2]} 3... cxd4 {[%clk 0:03:00]}
4. Nxd4 {[%clk 0:03:01.8]} 4... a6 {[%clk 0:03:00.6]} 5. Nc3 {[%clk 0:03:01.7]}
5... Qc7 {[%clk 0:02:59.8]} 6. Bd3 {[%clk 0:03:00.5]} 6... Nf6 {[%clk
0:02:59.2]} 7. O-O {[%clk 0:02:59.7]} 7... Bc5 {[%clk 0:02:58.1]} 8. Nb3 {[%clk
0:02:59.2]} 8... Be7 {[%clk 0:02:58.6]} 9. Qe2 {[%clk 0:02:57.8]} 9... d6 {[%clk
0:02:56]} 10. f4 {[%clk 0:02:57.5]} 10... Nbd7 {[%clk 0:02:56.1]} 11. Bd2 {[%clk
0:02:53.7]} 11... b5 {[%clk 0:02:47.3]} 12. Rae1 {[%clk 0:02:53.4]} 12... Bb7
{[%clk 0:02:47.5]} 13. e5 {[%clk 0:02:38.1]} 13... dxe5 {[%clk 0:02:10.4]} 14.
fxe5 {[%clk 0:02:35.2]} 14... Nd5 {[%clk 0:02:10]} 15. Qg4 {[%clk 0:02:27.3]}
15... g6 {[%clk 0:02:00.9]} 16. Bh6 {[%clk 0:02:10.2]} 16... Nxe5 {[%clk
0:01:11.8]} 17. Qg3 {[%clk 0:02:06.7]} 17... Nxc3 {[%clk 0:01:01.2]} 18. bxc3
{[%clk 0:01:59.1]} 18... Bd6 {[%clk 0:00:57.2]} 19. Bf4 {[%clk 0:01:40]} 19...
f6 {[%clk 0:00:54.6]} 20. Nd4 {[%clk 0:01:38]} 20... Bd5 {[%clk 0:00:53.1]} 21.
Bxg6+ {[%clk 0:01:02.9]} 21... hxg6 {[%clk 0:00:29.3]} 22. Bxe5 {[%clk
0:01:00.5]} 22... Bxe5 {[%clk 0:00:16.5]} 23. Qxg6+ {[%clk 0:01:00.4]} 23... Kd7
{[%clk 0:00:06.2]} 24. Nf3 {[%clk 0:00:37]} 24... Bxf3 {[%clk 0:00:04.6]} 25.
Rxf3 {[%clk 0:00:37]} 25... Rag8 {[%clk 0:00:05.2]} 26. Qd3+ {[%clk 0:00:36.4]}
26... Kc8 {[%clk 0:00:05.1]} 27. h3 {[%clk 0:00:36.4]} 27... Qc4 {[%clk
0:00:03.9]} 28. Qe3 {[%clk 0:00:34]} 28... Qc6 {[%clk 0:00:03]} 29. Kh1 {[%clk
0:00:31.5]} 29... Rg7 {[%clk 0:00:01.6]} 30. Rd1 {[%clk 0:00:28.4]} 30... Rhg8
{[%clk 0:00:01.9]} 0-1

[Event "*** Titled Tuesday Blitz"]
[Site "Chess.com"]
[Date "2020.05.26"]
[Round "4"]
[White "AlanZhang"]
[Black "korbul"]
[Result "0-1"]
[WhiteElo "2248"]
[BlackElo "2579"]
[TimeControl "180+1"]
[EndTime "10:38:19 PDT"]
[Termination "korbul won on time"]

1. e4 {[%clk 0:03:00.9]} 1... c5 {[%clk 0:02:59.8]} 2. Nf3 {[%clk 0:02:57.5]}
2... e6 {[%clk 0:02:59.8]} 3. d4 {[%clk 0:02:57.9]} 3... cxd4 {[%clk 0:02:59.8]}
4. Nxd4 {[%clk 0:02:58.8]} 4... Nf6 {[%clk 0:03:00.1]} 5. Bd3 {[%clk 0:02:56.5]}
5... Nc6 {[%clk 0:02:59.3]} 6. Nb3 {[%clk 0:02:54.7]} 6... a6 {[%clk 0:02:52.9]}
7. a4 {[%clk 0:02:51.5]} 7... b6 {[%clk 0:02:52.4]} 8. Nc3 {[%clk 0:02:50.7]}
8... Bb7 {[%clk 0:02:50.1]} 9. O-O {[%clk 0:02:50.3]} 9... Qc7 {[%clk
0:02:45.5]} 10. Bd2 {[%clk 0:02:46.9]} 10... d6 {[%clk 0:02:35.9]} 11. Qe2
{[%clk 0:02:39.4]} 11... Be7 {[%clk 0:02:34.8]} 12. Kh1 {[%clk 0:02:35]} 12...
O-O {[%clk 0:02:34.2]} 13. f4 {[%clk 0:02:33.6]} 13... g6 {[%clk 0:02:09.4]} 14.
Rae1 {[%clk 0:02:03.6]} 14... Rfe8 {[%clk 0:01:03.3]} 15. e5 {[%clk 0:00:51.7]}
15... Nh5 {[%clk 0:01:02.5]} 16. exd6 {[%clk 0:00:05.4]} 16... Bxd6 {[%clk
0:01:01.5]} 17. Qf2 {[%clk 0:00:05.6]} 17... Nb4 {[%clk 0:00:47.6]} 18. Be3
{[%clk 0:00:05.4]} 18... Nxd3 {[%clk 0:00:46.3]} 19. cxd3 {[%clk 0:00:06.3]}
19... Rab8 {[%clk 0:00:38.8]} 20. Bxb6 {[%clk 0:00:06.2]} 20... Bxg2+ {[%clk
0:00:38.6]} 21. Qxg2 {[%clk 0:00:06.4]} 21... Qxb6 {[%clk 0:00:34]} 22. f5
{[%clk 0:00:06.3]} 22... exf5 {[%clk 0:00:31.3]} 23. Rxe8+ {[%clk 0:00:03.4]}
23... Rxe8 {[%clk 0:00:30.5]} 24. Nc1 {[%clk 0:00:03.9]} 24... Qd4 {[%clk
0:00:19.8]} 25. Qd5 {[%clk 0:00:01.8]} 25... Qxd5+ {[%clk 0:00:19.1]} 26. Nxd5
{[%clk 0:00:02.7]} 26... Bc5 {[%clk 0:00:19.2]} 27. Nb3 {[%clk 0:00:01.8]} 27...
Ba7 {[%clk 0:00:17.7]} 28. a5 {[%clk 0:00:01.4]} 28... Rd8 {[%clk 0:00:17.8]}
0-1

[Event "*** Titled Tuesday Blitz"]
[Site "Chess.com"]
[Date "2020.05.26"]
[Round "4"]
[White "MomchilPetkov"]
[Black "Nathan_Filgueiras"]
[Result "1-0"]
[WhiteElo "2535"]
[BlackElo "2321"]
[TimeControl "180+1"]
[EndTime "10:38:19 PDT"]
[Termination "MomchilPetkov won by resignation"]

1. e4 {[%clk 0:03:00.9]} 1... c5 {[%clk 0:02:59.6]} 2. Nf3 {[%clk 0:02:59.4]}
2... Nc6 {[%clk 0:02:59.7]} 3. d4 {[%clk 0:02:59.3]} 3... cxd4 {[%clk
0:03:00.6]} 4. Nxd4 {[%clk 0:02:59.6]} 4... e5 {[%clk 0:03:00.4]} 5. Nb5 {[%clk
0:02:58.7]} 5... d6 {[%clk 0:03:00.7]} 6. c4 {[%clk 0:02:58.8]} 6... Be7 {[%clk
0:02:59.7]} 7. N1c3 {[%clk 0:02:58.6]} 7... a6 {[%clk 0:02:59.9]} 8. Na3 {[%clk
0:02:58.2]} 8... Be6 {[%clk 0:03:00.5]} 9. Be2 {[%clk 0:02:56]} 9... Bg5 {[%clk
0:02:58.3]} 10. O-O {[%clk 0:02:51.7]} 10... Bxc1 {[%clk 0:02:57.8]} 11. Rxc1
{[%clk 0:02:52.6]} 11... Nf6 {[%clk 0:02:58.2]} 12. Nc2 {[%clk 0:02:48.5]} 12...
O-O {[%clk 0:02:57.5]} 13. Qd2 {[%clk 0:02:36.3]} 13... Rc8 {[%clk 0:02:56]} 14.
Rfd1 {[%clk 0:02:35.6]} 14... Ne8 {[%clk 0:02:55.1]} 15. Nd5 {[%clk 0:02:31]}
15... f5 {[%clk 0:02:40.6]} 16. exf5 {[%clk 0:02:29.3]} 16... Bxf5 {[%clk
0:02:41.5]} 17. Bd3 {[%clk 0:02:22.5]} 17... e4 {[%clk 0:01:58]} 18. Bf1 {[%clk
0:02:19.4]} 18... Ne5 {[%clk 0:01:57.8]} 19. Nd4 {[%clk 0:02:09.2]} 19... Bd7
{[%clk 0:01:39.8]} 20. Re1 {[%clk 0:02:01.4]} 20... Ng4 {[%clk 0:00:45.9]} 21.
f3 {[%clk 0:01:41.4]} 21... exf3 {[%clk 0:00:36.1]} 22. Ne7+ {[%clk 0:01:25.7]}
22... Kh8 {[%clk 0:00:26]} 23. gxf3 {[%clk 0:01:25.7]} 23... Ne5 {[%clk
0:00:21.4]} 24. Nxc8 {[%clk 0:01:22.9]} 24... Bxc8 {[%clk 0:00:19.7]} 25. Kh1
{[%clk 0:01:14.8]} 25... Nf6 {[%clk 0:00:19.1]} 26. f4 {[%clk 0:00:57]} 26...
Ng6 {[%clk 0:00:18.9]} 27. Ne6 {[%clk 0:00:48.5]} 27... Bxe6 {[%clk 0:00:18.4]}
28. Rxe6 {[%clk 0:00:49.4]} 28... Nh5 {[%clk 0:00:18.4]} 29. Qxd6 {[%clk
0:00:40.2]} 29... Qh4 {[%clk 0:00:16.6]} 30. Rxg6 {[%clk 0:00:36.4]} 30... Rd8
{[%clk 0:00:16.6]} 31. Rg4 {[%clk 0:00:27.9]} 31... Qxh2+ {[%clk 0:00:05.4]} 32.
Kxh2 {[%clk 0:00:26.5]} 1-0

[Event "*** Titled Tuesday Blitz"]
[Site "Chess.com"]
[Date "2020.05.26"]
[Round "4"]
[White "tamarozi99"]
[Black "dennisodessa"]
[Result "0-1"]
[WhiteElo "2002"]
[BlackElo "2231"]
[TimeControl "180+1"]
[EndTime "10:38:19 PDT"]
[Termination "dennisodessa won on time"]

1. e4 {[%clk 0:03:00.9]} 1... e6 {[%clk 0:03:00.9]} 2. d4 {[%clk 0:02:59]} 2...
d5 {[%clk 0:03:01.2]} 3. Nc3 {[%clk 0:02:58.2]} 3... Nc6 {[%clk 0:02:59.6]} 4.
e5 {[%clk 0:02:50.2]} 4... f6 {[%clk 0:02:59.6]} 5. exf6 {[%clk 0:02:44.9]} 5...
Nxf6 {[%clk 0:03:00.5]} 6. Bb5 {[%clk 0:02:44.4]} 6... Bd6 {[%clk 0:02:54.2]} 7.
Nf3 {[%clk 0:02:42.1]} 7... O-O {[%clk 0:02:54.6]} 8. O-O {[%clk 0:02:33.3]}
8... a6 {[%clk 0:02:41.1]} 9. Bxc6 {[%clk 0:02:31.4]} 9... bxc6 {[%clk 0:02:42]}
10. Re1 {[%clk 0:02:17.5]} 10... c5 {[%clk 0:02:41.4]} 11. Ne2 {[%clk
0:02:11.9]} 11... cxd4 {[%clk 0:02:32.5]} 12. Nexd4 {[%clk 0:02:11.6]} 12... Re8
{[%clk 0:02:27.6]} 13. Nc6 {[%clk 0:02:01.9]} 13... Qd7 {[%clk 0:02:26.5]} 14.
Nce5 {[%clk 0:02:01.8]} 14... Qb5 {[%clk 0:02:25.6]} 15. c3 {[%clk 0:01:51.8]}
15... c5 {[%clk 0:02:16]} 16. a4 {[%clk 0:01:31.2]} 16... Qb6 {[%clk 0:01:54.6]}
17. Qc2 {[%clk 0:01:18.4]} 17... Rb8 {[%clk 0:01:45.6]} 18. Ng5 {[%clk
0:00:59.7]} 18... Rb7 {[%clk 0:01:13.9]} 19. h4 {[%clk 0:00:33.8]} 19... h6
{[%clk 0:01:10.3]} 20. Nh3 {[%clk 0:00:33.8]} 20... Ne4 {[%clk 0:01:10.5]} 21.
f3 {[%clk 0:00:23.7]} 21... Bxe5 {[%clk 0:01:06.7]} 22. fxe4 {[%clk 0:00:22.7]}
22... d4 {[%clk 0:01:03.5]} 23. Bf4 {[%clk 0:00:14.8]} 23... Bxf4 {[%clk
0:01:00.5]} 24. Nxf4 {[%clk 0:00:15.7]} 24... Qxb2 {[%clk 0:01:01.1]} 25. Qxb2
{[%clk 0:00:09.4]} 25... Rxb2 {[%clk 0:01:02]} 26. cxd4 {[%clk 0:00:09.7]} 26...
cxd4 {[%clk 0:01:02.9]} 27. Rad1 {[%clk 0:00:09.6]} 27... e5 {[%clk 0:01:02.8]}
28. Nd5 {[%clk 0:00:09.9]} 28... Bd7 {[%clk 0:00:57.4]} 29. Rc1 {[%clk
0:00:08.1]} 29... Bxa4 {[%clk 0:00:55.4]} 30. Rc7 {[%clk 0:00:06.9]} 30... d3
{[%clk 0:00:48.4]} 31. Rf1 {[%clk 0:00:06.9]} 31... d2 {[%clk 0:00:47.4]} 32.
Rff7 {[%clk 0:00:06]} 32... d1=Q+ {[%clk 0:00:45.3]} 33. Kh2 {[%clk 0:00:06.3]}
33... Qg4 {[%clk 0:00:41.3]} 34. Rxg7+ {[%clk 0:00:01.3]} 34... Qxg7 {[%clk
0:00:40.8]} 0-1

[Event "*** Titled Tuesday Blitz"]
[Site "Chess.com"]
[Date "2020.05.26"]
[Round "4"]
[White "zajka-molotok"]
[Black "Unknown_IM"]
[Result "1-0"]
[WhiteElo "2364"]
[BlackElo "2524"]
[TimeControl "180+1"]
[EndTime "10:38:20 PDT"]
[Termination "zajka-molotok won by resignation"]

1. d4 {[%clk 0:03:00.9]} 1... d5 {[%clk 0:02:59.7]} 2. c4 {[%clk 0:03:00.3]}
2... c6 {[%clk 0:02:59.8]} 3. cxd5 {[%clk 0:02:59.7]} 3... cxd5 {[%clk
0:03:00.7]} 4. Nc3 {[%clk 0:02:59.6]} 4... Nc6 {[%clk 0:03:01.1]} 5. e4 {[%clk
0:02:58.4]} 5... dxe4 {[%clk 0:02:59.1]} 6. d5 {[%clk 0:02:57.7]} 6... Ne5
{[%clk 0:02:59.5]} 7. Qa4+ {[%clk 0:02:55]} 7... Bd7 {[%clk 0:02:59.1]} 8. Qxe4
{[%clk 0:02:54.6]} 8... Ng6 {[%clk 0:02:59.6]} 9. Bc4 {[%clk 0:02:51.6]} 9...
Nf6 {[%clk 0:02:59.4]} 10. Qe2 {[%clk 0:02:51.4]} 10... Rc8 {[%clk 0:02:42.1]}
11. Nf3 {[%clk 0:02:46.3]} 11... Qc7 {[%clk 0:02:41]} 12. Bb3 {[%clk 0:02:35.9]}
12... Nf4 {[%clk 0:02:40]} 13. Bxf4 {[%clk 0:02:34.2]} 13... Qxf4 {[%clk
0:02:40.9]} 14. O-O {[%clk 0:02:31.2]} 14... g6 {[%clk 0:02:22.5]} 15. Rfe1
{[%clk 0:02:27.5]} 15... Qd6 {[%clk 0:02:10]} 16. Ne5 {[%clk 0:02:11.6]} 16...
Bg7 {[%clk 0:02:05.4]} 17. Nxd7 {[%clk 0:01:08.6]} 17... Nxd7 {[%clk 0:02:02.8]}
18. Nb5 {[%clk 0:01:06.7]} 18... Qf6 {[%clk 0:01:45.7]} 19. d6 {[%clk 0:00:47]}
19... O-O {[%clk 0:01:31]} 20. dxe7 {[%clk 0:00:44]} 20... Rfe8 {[%clk
0:01:30.7]} 21. Rad1 {[%clk 0:00:38.2]} 21... Ne5 {[%clk 0:01:04.1]} 22. Nd6
{[%clk 0:00:32]} 22... Qxe7 {[%clk 0:01:01.1]} 23. Bxf7+ {[%clk 0:00:14]} 23...
Nxf7 {[%clk 0:00:59.8]} 24. Qxe7 {[%clk 0:00:13.4]} 24... Rxe7 {[%clk
0:00:57.8]} 25. Nxc8 {[%clk 0:00:13.4]} 25... Rxe1+ {[%clk 0:00:51.3]} 26. Rxe1
{[%clk 0:00:13.4]} 26... Bxb2 {[%clk 0:00:52]} 27. Nxa7 {[%clk 0:00:12.4]} 27...
Bf6 {[%clk 0:00:47]} 28. Rb1 {[%clk 0:00:11.7]} 28... Nd6 {[%clk 0:00:44.1]} 29.
Rb6 {[%clk 0:00:11.4]} 29... Be5 {[%clk 0:00:44.2]} 30. Nb5 {[%clk 0:00:10.3]}
30... Nc4 {[%clk 0:00:36.9]} 31. Rxb7 {[%clk 0:00:10.4]} 31... h5 {[%clk
0:00:36.3]} 32. a4 {[%clk 0:00:10.1]} 32... Kf8 {[%clk 0:00:34.9]} 33. Ra7
{[%clk 0:00:09.6]} 33... Ke8 {[%clk 0:00:33.3]} 34. g3 {[%clk 0:00:09.9]} 34...
Kd8 {[%clk 0:00:32.9]} 35. Kg2 {[%clk 0:00:09.6]} 35... Kc8 {[%clk 0:00:32.6]}
36. Ra6 {[%clk 0:00:09.2]} 36... g5 {[%clk 0:00:31.4]} 37. Rc6+ {[%clk
0:00:09.4]} 1-0

[Event "*** Titled Tuesday Blitz"]
[Site "Chess.com"]
[Date "2020.05.26"]
[Round "4"]
[White "Sadykov_Ramil"]
[Black "Fortitudine"]
[Result "1-0"]
[WhiteElo "2490"]
[BlackElo "2302"]
[TimeControl "180+1"]
[EndTime "10:38:20 PDT"]
[Termination "Sadykov_Ramil won by resignation"]

1. e4 {[%clk 0:03:00.9]} 1... c5 {[%clk 0:02:59.1]} 2. Nf3 {[%clk 0:03:01]} 2...
d6 {[%clk 0:02:59.2]} 3. d4 {[%clk 0:02:59.6]} 3... cxd4 {[%clk 0:03:00.1]} 4.
Nxd4 {[%clk 0:03:00.5]} 4... Nf6 {[%clk 0:03:00.3]} 5. Nc3 {[%clk 0:03:01.2]}
5... Nc6 {[%clk 0:03:00.8]} 6. Bc4 {[%clk 0:03:00.4]} 6... Qb6 {[%clk
0:02:54.5]} 7. Nb3 {[%clk 0:02:58.7]} 7... Bg4 {[%clk 0:02:53.9]} 8. f3 {[%clk
0:02:49.4]} 8... Bd7 {[%clk 0:02:54]} 9. Qe2 {[%clk 0:02:42.9]} 9... e6 {[%clk
0:02:53.9]} 10. Be3 {[%clk 0:02:42.6]} 10... Qc7 {[%clk 0:02:54.1]} 11. O-O-O
{[%clk 0:02:35.1]} 11... a6 {[%clk 0:02:53.8]} 12. f4 {[%clk 0:02:26.6]} 12...
Be7 {[%clk 0:02:41.3]} 13. g4 {[%clk 0:02:05.4]} 13... h6 {[%clk 0:02:11.9]} 14.
h4 {[%clk 0:01:51.3]} 14... Rc8 {[%clk 0:02:05.1]} 15. g5 {[%clk 0:01:29.9]}
15... Ng8 {[%clk 0:01:49.3]} 16. g6 {[%clk 0:01:08.9]} 16... Nb4 {[%clk
0:01:25.2]} 17. gxf7+ {[%clk 0:00:54.1]} 17... Kxf7 {[%clk 0:01:26.1]} 18. Bd3
{[%clk 0:00:44.7]} 18... Nf6 {[%clk 0:01:02.4]} 19. Rhg1 {[%clk 0:00:38.4]}
19... h5 {[%clk 0:00:56]} 20. e5 {[%clk 0:00:28.8]} 20... Nxd3+ {[%clk
0:00:48.4]} 21. Qxd3 {[%clk 0:00:22.7]} 21... Ng4 {[%clk 0:00:48.3]} 22. exd6
{[%clk 0:00:15.9]} 22... Bxd6 {[%clk 0:00:39.5]} 23. Qxd6 {[%clk 0:00:15.7]}
23... Nxe3 {[%clk 0:00:28.9]} 24. Qxd7+ {[%clk 0:00:15.3]} 24... Qxd7 {[%clk
0:00:20.4]} 25. Rxd7+ {[%clk 0:00:16.2]} 25... Kf6 {[%clk 0:00:18.3]} 26. Ne4+
{[%clk 0:00:12.8]} 26... Kf5 {[%clk 0:00:18.2]} 27. Nd6+ {[%clk 0:00:12.8]}
27... Kxf4 {[%clk 0:00:14.8]} 28. Rf7+ {[%clk 0:00:10.7]} 1-0

[Event "*** Titled Tuesday Blitz"]
[Site "Chess.com"]
[Date "2020.05.26"]
[Round "4"]
[White "BillieKimbah"]
[Black "2L8IWUN"]
[Result "1-0"]
[WhiteElo "2852"]
[BlackElo "2543"]
[TimeControl "180+1"]
[EndTime "10:38:21 PDT"]
[Termination "BillieKimbah won on time"]

1. d4 {[%clk 0:03:00.9]} 1... Nf6 {[%clk 0:02:59.6]} 2. Nf3 {[%clk 0:03:00.4]}
2... e6 {[%clk 0:02:59.3]} 3. Bg5 {[%clk 0:02:59.7]} 3... d5 {[%clk 0:02:51.2]}
4. e3 {[%clk 0:02:58.7]} 4... Be7 {[%clk 0:02:48.1]} 5. c4 {[%clk 0:02:57.6]}
5... Nbd7 {[%clk 0:02:46.6]} 6. Nc3 {[%clk 0:02:57]} 6... h6 {[%clk 0:02:46.9]}
7. Bf4 {[%clk 0:02:56.4]} 7... O-O {[%clk 0:02:46.2]} 8. g4 {[%clk 0:02:56.2]}
8... Ne4 {[%clk 0:02:08.8]} 9. Nxe4 {[%clk 0:02:50.4]} 9... dxe4 {[%clk
0:02:09.7]} 10. Nd2 {[%clk 0:02:50.9]} 10... f5 {[%clk 0:02:00.1]} 11. Bg2
{[%clk 0:02:39.3]} 11... Bd6 {[%clk 0:01:55.5]} 12. Bg3 {[%clk 0:02:37.7]} 12...
Nf6 {[%clk 0:01:51.8]} 13. gxf5 {[%clk 0:02:31.4]} 13... exf5 {[%clk 0:01:52.7]}
14. Qc2 {[%clk 0:02:27]} 14... c6 {[%clk 0:01:49.8]} 15. O-O-O {[%clk
0:02:26.5]} 15... Be6 {[%clk 0:01:47]} 16. Kb1 {[%clk 0:02:25.9]} 16... a5
{[%clk 0:01:44.8]} 17. f3 {[%clk 0:02:23.7]} 17... exf3 {[%clk 0:01:34.1]} 18.
Nxf3 {[%clk 0:02:23.3]} 18... Ne4 {[%clk 0:01:33.5]} 19. Bxd6 {[%clk 0:02:20.1]}
19... Qxd6 {[%clk 0:01:32.2]} 20. Ne5 {[%clk 0:02:20.1]} 20... Nf6 {[%clk
0:01:25.5]} 21. Rhg1 {[%clk 0:02:19.9]} 21... c5 {[%clk 0:01:16.5]} 22. Bxb7
{[%clk 0:02:13.7]} 22... Rab8 {[%clk 0:01:14.6]} 23. Qg2 {[%clk 0:02:14.2]}
23... Ng4 {[%clk 0:01:11.3]} 24. Bd5 {[%clk 0:02:03.7]} 24... Bxd5 {[%clk
0:01:03.7]} 25. cxd5 {[%clk 0:02:04.6]} 25... Rb7 {[%clk 0:01:03.2]} 26. Nxg4
{[%clk 0:01:47.9]} 26... fxg4 {[%clk 0:01:04.1]} 27. Qxg4 {[%clk 0:01:42]} 27...
Qxd5 {[%clk 0:00:57.8]} 28. Rd2 {[%clk 0:01:13.6]} 28... Rfb8 {[%clk 0:00:44.8]}
29. Ka1 {[%clk 0:01:08.1]} 29... cxd4 {[%clk 0:00:20.8]} 30. exd4 {[%clk
0:01:07.2]} 30... a4 {[%clk 0:00:19.4]} 31. a3 {[%clk 0:01:06.7]} 31... Re8
{[%clk 0:00:09.4]} 32. Rc2 {[%clk 0:00:46.8]} 32... Rbe7 {[%clk 0:00:07.6]} 33.
Rc8 {[%clk 0:00:43.4]} 33... Rxc8 {[%clk 0:00:05.1]} 34. Qxc8+ {[%clk
0:00:44.3]} 34... Kh7 {[%clk 0:00:05.8]} 35. Qc2+ {[%clk 0:00:43.9]} 35... Qe4
{[%clk 0:00:04.9]} 36. Qxa4 {[%clk 0:00:43.5]} 36... Rf7 {[%clk 0:00:01.7]} 37.
Qc4 {[%clk 0:00:42.4]} 37... Rf2 {[%clk 0:00:01.5]} 38. Qc7 {[%clk 0:00:37.9]}
1-0

[Event "*** Titled Tuesday Blitz"]
[Site "Chess.com"]
[Date "2020.05.26"]
[Round "4"]
[White "sergeikim"]
[Black "AGW2016"]
[Result "1-0"]
[WhiteElo "2412"]
[BlackElo "2212"]
[TimeControl "180+1"]
[EndTime "10:38:23 PDT"]
[Termination "sergeikim won by resignation"]

1. d4 {[%clk 0:03:00.9]} 1... Nf6 {[%clk 0:03:00.1]} 2. c4 {[%clk 0:03:00.8]}
2... g6 {[%clk 0:03:00.7]} 3. Nc3 {[%clk 0:03:00.7]} 3... Bg7 {[%clk 0:03:01.5]}
4. e4 {[%clk 0:03:00.4]} 4... d6 {[%clk 0:03:02.2]} 5. Nge2 {[%clk 0:02:59.5]}
5... O-O {[%clk 0:03:02.7]} 6. Ng3 {[%clk 0:02:59.3]} 6... e5 {[%clk 0:03:02]}
7. d5 {[%clk 0:02:58.6]} 7... Ne8 {[%clk 0:02:53.6]} 8. Bd3 {[%clk 0:02:55.3]}
8... f5 {[%clk 0:02:52.3]} 9. exf5 {[%clk 0:02:55.2]} 9... gxf5 {[%clk
0:02:52.6]} 10. Nh5 {[%clk 0:02:54.8]} 10... Nd7 {[%clk 0:02:46.3]} 11. f4
{[%clk 0:02:40.9]} 11... e4 {[%clk 0:02:44.4]} 12. Bc2 {[%clk 0:02:36.4]} 12...
Ndf6 {[%clk 0:02:34.9]} 13. Nxg7 {[%clk 0:02:30]} 13... Nxg7 {[%clk 0:02:35.8]}
14. Be3 {[%clk 0:02:24.4]} 14... Bd7 {[%clk 0:02:25.3]} 15. Qd2 {[%clk
0:02:20.3]} 15... Ng4 {[%clk 0:01:47]} 16. Bd4 {[%clk 0:02:19.4]} 16... e3
{[%clk 0:01:41.7]} 17. Qe2 {[%clk 0:02:17]} 17... Nh5 {[%clk 0:01:40.8]} 18. g3
{[%clk 0:02:08.1]} 18... Qe7 {[%clk 0:01:14.6]} 19. O-O-O {[%clk 0:01:52.6]}
19... c5 {[%clk 0:01:14.1]} 20. dxc6 {[%clk 0:01:51.5]} 20... bxc6 {[%clk
0:01:14.3]} 21. c5 {[%clk 0:01:48.5]} 21... dxc5 {[%clk 0:01:10]} 22. Qc4+
{[%clk 0:01:47]} 22... Be6 {[%clk 0:01:07]} 23. Qxc5 {[%clk 0:01:46.8]} 23...
Qxc5 {[%clk 0:00:45.4]} 24. Bxc5 {[%clk 0:01:46.4]} 24... Rfd8 {[%clk
0:00:45.9]} 25. Rde1 {[%clk 0:01:30.9]} 25... Nf2 {[%clk 0:00:19.9]} 26. Rhf1
{[%clk 0:01:27.3]} 26... Bc4 {[%clk 0:00:20.3]} 27. Rg1 {[%clk 0:01:20]} 27...
Nh3 {[%clk 0:00:20.3]} 28. Rg2 {[%clk 0:01:13.7]} 28... e2 {[%clk 0:00:16.7]}
29. b3 {[%clk 0:01:09.3]} 29... Ba6 {[%clk 0:00:14.7]} 30. Bxf5 {[%clk
0:01:05.1]} 30... Nf6 {[%clk 0:00:06.7]} 31. Bxh3 {[%clk 0:01:01.7]} 31... Nd5
{[%clk 0:00:06.4]} 32. Nxd5 {[%clk 0:00:59.3]} 32... Rxd5 {[%clk 0:00:07.3]} 33.
Be6+ {[%clk 0:00:58.1]} 33... Kg7 {[%clk 0:00:07.1]} 34. Bxd5 {[%clk 0:00:57.7]}
34... cxd5 {[%clk 0:00:08]} 35. Rgxe2 {[%clk 0:00:56.8]} 35... Bxe2 {[%clk
0:00:07.8]} 36. Rxe2 {[%clk 0:00:56.7]} 36... Rc8 {[%clk 0:00:08.7]} 37. b4
{[%clk 0:00:56.5]} 37... a5 {[%clk 0:00:09.6]} 38. a3 {[%clk 0:00:56.1]} 38...
axb4 {[%clk 0:00:09.7]} 39. axb4 {[%clk 0:00:56.2]} 39... Kg6 {[%clk 0:00:10.6]}
40. Re5 {[%clk 0:00:54.6]} 40... d4 {[%clk 0:00:10.4]} 41. Kd2 {[%clk
0:00:53.1]} 41... Ra8 {[%clk 0:00:10]} 42. Kd3 {[%clk 0:00:51]} 42... Ra2 {[%clk
0:00:10.9]} 43. h4 {[%clk 0:00:49.8]} 43... Rg2 {[%clk 0:00:10.8]} 44. Rg5+
{[%clk 0:00:48.8]} 44... Kf6 {[%clk 0:00:10.6]} 45. Bxd4+ {[%clk 0:00:47.1]}
45... Ke6 {[%clk 0:00:11.5]} 46. b5 {[%clk 0:00:46.6]} 46... Rb2 {[%clk
0:00:10.6]} 1-0

[Event "*** Titled Tuesday Blitz"]
[Site "Chess.com"]
[Date "2020.05.26"]
[Round "4"]
[White "White_Ghost"]
[Black "Spartakus1975"]
[Result "0-1"]
[WhiteElo "2485"]
[BlackElo "2687"]
[TimeControl "180+1"]
[EndTime "10:38:25 PDT"]
[Termination "Spartakus1975 won on time"]

1. d4 {[%clk 0:03:00.9]} 1... d5 {[%clk 0:02:58.8]} 2. c4 {[%clk 0:03:01.1]}
2... c6 {[%clk 0:02:57.2]} 3. cxd5 {[%clk 0:03:01]} 3... cxd5 {[%clk 0:02:57.3]}
4. Bf4 {[%clk 0:03:01.9]} 4... Nc6 {[%clk 0:02:55.4]} 5. e3 {[%clk 0:03:02.3]}
5... Bf5 {[%clk 0:02:54.8]} 6. Nc3 {[%clk 0:03:02.5]} 6... e6 {[%clk 0:02:54.5]}
7. Qb3 {[%clk 0:02:58.2]} 7... Qd7 {[%clk 0:02:52.3]} 8. Nf3 {[%clk 0:02:46.5]}
8... f6 {[%clk 0:02:52.2]} 9. Bb5 {[%clk 0:02:42.7]} 9... g5 {[%clk 0:02:49.1]}
10. Bg3 {[%clk 0:02:42.3]} 10... h5 {[%clk 0:02:48.6]} 11. h4 {[%clk 0:02:42]}
11... g4 {[%clk 0:02:48.3]} 12. Nd2 {[%clk 0:02:42.3]} 12... Nge7 {[%clk
0:02:47.3]} 13. Na4 {[%clk 0:02:34.8]} 13... b6 {[%clk 0:02:41.9]} 14. Rc1
{[%clk 0:02:32.3]} 14... Rc8 {[%clk 0:02:41.6]} 15. O-O {[%clk 0:02:28.8]} 15...
Kf7 {[%clk 0:02:23.6]} 16. Ba6 {[%clk 0:02:14.6]} 16... Rd8 {[%clk 0:02:14.7]}
17. a3 {[%clk 0:01:56.7]} 17... Na5 {[%clk 0:02:07.6]} 18. Qd1 {[%clk
0:01:55.3]} 18... Bg6 {[%clk 0:01:56.5]} 19. Rc7 {[%clk 0:01:51.4]} 19... Qe8
{[%clk 0:01:54.4]} 20. Rxa7 {[%clk 0:01:49.2]} 20... Kg8 {[%clk 0:01:53.3]} 21.
Nxb6 {[%clk 0:01:30.6]} 21... Nf5 {[%clk 0:01:46.3]} 22. Bc7 {[%clk 0:01:23.3]}
22... Nxh4 {[%clk 0:01:43.5]} 23. Bxd8 {[%clk 0:01:21.7]} 23... Qxd8 {[%clk
0:01:43.5]} 24. Na4 {[%clk 0:01:04.1]} 24... Qb8 {[%clk 0:01:29.6]} 25. Rd7
{[%clk 0:00:32.2]} 25... Be8 {[%clk 0:01:27.1]} 26. b4 {[%clk 0:00:23.9]} 26...
Bxd7 {[%clk 0:01:17.2]} 27. bxa5 {[%clk 0:00:23.5]} 27... Rh7 {[%clk 0:01:10.6]}
28. Nb6 {[%clk 0:00:19.7]} 28... Rg7 {[%clk 0:01:05.7]} 29. e4 {[%clk
0:00:17.2]} 29... dxe4 {[%clk 0:00:52.4]} 30. Nxe4 {[%clk 0:00:16.8]} 30... Bc6
{[%clk 0:00:43.4]} 31. Nxf6+ {[%clk 0:00:14.6]} 31... Kh8 {[%clk 0:00:43.2]} 32.
Qd2 {[%clk 0:00:12.4]} 32... Nf3+ {[%clk 0:00:33.9]} 33. gxf3 {[%clk 0:00:10]}
33... gxf3+ {[%clk 0:00:34.4]} 34. Kh1 {[%clk 0:00:10.3]} 34... Rg2 {[%clk
0:00:34.5]} 35. Ng4 {[%clk 0:00:01.4]} 35... hxg4 {[%clk 0:00:31]} 0-1